bitfinex/quotes_SOLUSD_20240930
["timestamp","ask_amount","ask_price","bid_price","bid_amount"]
[1727677981770,1.58932995,157.32,157.25,26.41691402]
[1727677982070,23.776884,157.31,157.25,26.41691402]
[1727677982257,1.58945979,157.3,157.25,26.41691402]
[1727677983574,23.776884,157.31,157.25,26.41691402]
[1727677983773,23.776884,157.32,157.25,26.41691402]
[1727677983951,1.58946008,157.31,157.25,26.41691402]
[1727677989754,23.776884,157.32,157.26,1.27157208]
[1727677989958,23.776884,157.33,157.25,26.41691402]
[1727677990184,23.776884,157.31,157.25,26.41691402]
[1727677990478,23.776884,157.33,157.25,26.41691402]
[1727677990951,1.58940011,157.32,157.25,26.41691402]
[1727677991155,23.776884,157.31,157.25,26.41691402]
[1727678001258,23.776884,157.32,157.25,26.41691402]
[1727678001455,23.776884,157.33,157.26,1.39701087]
[1727678002182,23.776884,157.33,157.26,0.12549]
[1727678002383,23.776884,157.33,157.26,1.39690305]
[1727678002561,23.776884,157.33,157.26,0.12549]
[1727678003179,23.776884,157.34,157.26,0.12549]
[1727678003482,31.7471,157.5,157.31,10.13361402]
[1727678003483,15.9909,157.41,157.31,10.13361402]
[1727678003784,22.3438,157.41,157.32,1.2710145]
[1727678003983,6.3529,157.41,157.33,16.76651402]
[1727678004173,6.3529,157.41,157.34,1.27093983]
[1727678004370,9.54197684,157.44,157.35,1.2709406]
[1727678004566,1.58851211,157.43,157.34,0.12549]
[1727678004765,7.94051211,157.43,157.34,0.12549]
[1727678005266,1.58851211,157.43,157.34,0.12549]
[1727678005488,261.72257684,157.47,157.37,10.13361402]
[1727678005666,6.3512,157.45,157.37,10.13361402]
[1727678005866,1.58823673,157.44,157.37,10.13361402]
[1727678006076,1.58823673,157.44,157.36,15.3016]
[1727678006669,23.776884,157.43,157.36,15.3016]
[1727678006965,1.58823818,157.42,157.36,15.3016]
[1727678015667,30.128884,157.43,157.36,15.3016]
[1727678016381,1.58829249,157.42,157.36,15.3016]
[1727678020206,30.128884,157.43,157.36,15.3016]
[1727678021094,1.58837526,157.42,157.36,15.3016]
[1727678021301,1.58837522,157.42,157.36,15.3016]
[1727678023694,30.128884,157.43,157.36,15.3016]
[1727678023882,1.58837562,157.42,157.36,15.3016]
[1727678025481,23.776884,157.43,157.37,11.40431507]
[1727678026380,6.3517,157.44,157.38,6.2966]
[1727678026695,6.3517,157.44,157.39,1.27051778]
[1727678027478,6.3515,157.45,157.38,6.2966]
[1727678027684,1.5880851,157.44,157.38,6.2966]
[1727678032877,6.3532,157.41,157.38,6.2966]
[1727678033197,1.58838345,157.42,157.38,6.2966]
[1727678034081,7.94078345,157.42,157.38,6.2966]
[1727678035401,7.94078345,157.42,157.36,15.3016]
[1727678035402,6.3528,157.41,157.36,15.3016]
[1727678035599,1.58838932,157.4,157.36,15.3016]
[1727678036307,1.58838942,157.41,157.36,15.3016]
[1727678039711,6.3525,157.42,157.36,15.3016]
[1727678040120,30.128884,157.43,157.36,15.3016]
[1727678040414,1.58838957,157.42,157.36,15.3016]
[1727678040991,30.128884,157.43,157.36,15.3016]
[1727678041518,30.128884,157.43,157.37,1.39620474]
[1727678041700,30.128884,157.43,157.37,0.12549]
[1727678042025,1.58823466,157.42,157.37,0.12549]
[1727678043694,1.58823466,157.42,157.36,15.3016]
[1727678043910,7.94083466,157.42,157.36,15.3016]
[1727678049128,6.3532,157.4,157.34,6.5617]
[1727678049296,23.776884,157.43,157.34,6.5617]
[1727678049297,7.94228753,157.39,157.34,6.5617]
[1727678050005,1.58868753,157.39,157.34,6.5617]
[1727678050521,23.776884,157.4,157.34,16.69531402]
[1727678050699,23.776884,157.4,157.35,1.27084222]
[1727678051098,23.776884,157.41,157.35,1.27084222]
[1727678054131,20.0,157.45,157.37,16.4144]
[1727678054321,16.4979,157.48,157.4,10.13361402]
[1727678054523,16.4979,157.48,157.41,1.27040752]
[1727678054711,6.3504,157.47,157.41,1.27040752]
[1727678054904,6.3504,157.47,157.4,10.13361402]
[1727678055409,1.58792596,157.46,157.4,10.13361402]
[1727678057207,23.776884,157.46,157.4,10.13361402]
[1727678058152,9.67177684,157.5,157.42,26.60391402]
[1727678058301,3.32257684,157.51,157.44,10.13361402]
[1727678058503,3.32257684,157.51,157.44,16.27711402]
[1727678058701,9.67137684,157.51,157.44,16.27711402]
[1727678059410,6.3488,157.51,157.44,16.27711402]
[1727678060628,23.776884,157.5,157.44,16.27711402]
[1727678060937,31.71373772,157.5,157.44,6.1435]
[1727678061730,1.58761961,157.49,157.44,6.1435]
[1727678061934,23.776884,157.5,157.45,1.27012331]
[1727678062214,43.776884,157.52,157.44,16.27711402]
[1727678062707,30.125284,157.52,157.45,0.12549]
[1727678062912,30.125284,157.52,157.45,1.39544373]
[1727678063433,23.776884,157.52,157.45,1.39544373]
[1727678063628,6.3479,157.54,157.46,10.13361402]
[1727678063926,6.3479,157.54,157.47,16.2489]
[1727678064134,7.93509559,157.54,157.47,16.2489]
[1727678064338,6.3484,157.52,157.47,16.2489]
[1727678064525,1.58738161,157.51,157.47,16.2489]
[1727678065012,1.58736776,157.52,157.47,16.2489]
[1727678072343,7.93576776,157.52,157.47,16.2489]
[1727678072518,6.3484,157.52,157.47,16.2489]
[1727678073014,1.58732438,157.51,157.47,16.2489]
[1727678074545,30.126084,157.5,157.44,6.1435]
[1727678074723,1.58760145,157.49,157.44,6.1435]
[1727678075635,23.776884,157.5,157.44,6.1435]
[1727678079232,1.58757696,157.49,157.44,6.1435]
[1727678081638,23.776884,157.48,157.43,16.2588]
[1727678081938,23.776884,157.46,157.4,6.102]
[1727678082941,23.776884,157.47,157.4,6.102]
[1727678083241,1.58796112,157.46,157.4,6.102]
[1727678086449,23.776884,157.47,157.41,1.27036937]
[1727678086628,23.776884,157.47,157.41,0.12549]
[1727678088143,23.776884,157.48,157.41,0.12549]
[1727678088556,23.776884,157.48,157.41,11.52936573]
[1727678089045,6.3492,157.5,157.41,10.25910402]
[1727678089430,1.58766507,157.49,157.41,10.25910402]
[1727678089734,7.93726507,157.49,157.41,10.25910402]
[1727678089937,1.58776472,157.48,157.41,10.25910402]
[1727678091947,23.776884,157.48,157.41,10.25910402]
[1727678092327,1.58773343,157.47,157.41,10.25910402]
[1727678093426,23.776884,157.48,157.41,10.25910402]
[1727678094053,1.58772846,157.47,157.41,10.25910402]
[1727678097257,23.776884,157.48,157.41,10.25910402]
[1727678099635,1.58773934,157.47,157.41,10.25910402]
[1727678100445,23.776884,157.48,157.41,10.25910402]
[1727678100876,1.58773225,157.47,157.41,10.25910402]
[1727678101367,6.3496,157.49,157.41,10.25910402]
[1727678101542,23.776884,157.49,157.41,10.25910402]
[1727678101859,25.36453868,157.49,157.41,10.25910402]
[1727678105737,25.36453868,157.49,157.41,0.12549]
[1727678105952,1.58775387,157.48,157.41,0.12549]
[1727678106544,23.776884,157.45,157.4,6.102]
[1727678106737,1.58807396,157.44,157.4,6.102]
[1727678107058,6.3524,157.42,157.36,6.1839]
[1727678107238,23.776884,157.4,157.35,15.9643]
[1727678107439,1.58862228,157.39,157.35,15.9643]
[1727678109061,1.58862228,157.39,157.32,6.1839]
[1727678110559,23.776884,157.4,157.33,1.27097651]
[1727678111863,23.776884,157.41,157.33,1.27097651]
[1727678113952,23.776884,157.41,157.33,0.12549]
[1727678114265,23.776884,157.39,157.33,0.12549]
[1727678114572,1.58868938,157.38,157.33,0.12549]
[1727678114870,1.58868938,157.38,157.32,6.1839]
[1727678115467,1.58872333,157.39,157.32,6.1839]
[1727678116068,7.94272333,157.39,157.32,6.1839]
[1727678116579,6.354,157.39,157.32,6.1839]
[1727678118066,23.776884,157.42,157.32,6.1839]
[1727678118375,23.776884,157.39,157.32,6.1839]
[1727678122380,25.36560616,157.39,157.33,0.12549]
[1727678123178,25.36560616,157.39,157.32,6.1839]
[1727678123363,23.776884,157.36,157.32,6.1839]
[1727678123558,1.58903401,157.35,157.31,16.5871]
[1727678124258,7.94433401,157.35,157.29,4.21471925]
[1727678124463,7.94433401,157.35,157.28,6.2344]
[1727678124464,23.776884,157.34,157.28,10.44911925]
[1727678124768,1.5892317,157.33,157.28,10.44918842]
[1727678125975,1.5892317,157.33,157.28,6.2344]
[1727678126677,23.776884,157.32,157.28,6.2344]
[1727678126975,1.58939182,157.31,157.28,6.2344]
[1727678127765,1.58939182,157.31,157.27,15.0389]
[1727678130977,23.776884,157.33,157.27,15.0389]
[1727678132684,23.776884,157.31,157.27,15.0389]
[1727678133074,23.776884,157.33,157.27,15.0389]
[1727678134283,23.776884,157.34,157.27,15.0389]
[1727678134468,23.776884,157.32,157.27,15.0389]
[1727678134663,1.58939125,157.31,157.27,15.0389]
[1727678134876,30.132584,157.34,157.27,15.0389]
[1727678135477,21.835,157.37,157.28,1.39700208]
[1727678135780,7.94418586,157.36,157.28,0.12549]
[1727678135977,7.94418586,157.36,157.27,15.0389]
[1727678135978,6.3552,157.35,157.27,15.0389]
[1727678136195,7.94507299,157.34,157.27,15.0389]
[1727678136981,23.776884,157.34,157.27,15.0389]
[1727678137584,23.776884,157.35,157.28,0.12549]
[1727678137792,1.58920252,157.34,157.28,0.12549]
[1727678138159,1.58920252,157.34,157.27,15.0389]
[1727678138160,23.776884,157.33,157.27,15.0389]
[1727678138378,1.58932591,157.32,157.27,15.0389]
[1727678138577,23.776884,157.33,157.27,15.0389]
[1727678138779,1.58932706,157.32,157.27,15.0389]
[1727678139671,23.776884,157.34,157.27,15.0389]
[1727678143193,23.776884,157.32,157.27,15.0389]
[1727678143575,23.776884,157.34,157.27,15.0389]
[1727678143779,23.776884,157.34,157.28,1.27145758]
[1727678145509,23.776884,157.35,157.28,1.27145758]
[1727678147295,23.776884,157.35,157.27,15.0389]
[1727678154899,1.58924556,157.34,157.27,15.0389]
[1727678156407,23.776884,157.35,157.27,15.0389]
[1727678156905,23.776884,157.35,157.29,6.469]
[1727678157091,23.776884,157.36,157.3,1.27128824]
[1727678157295,23.776884,157.36,157.29,6.469]
[1727678160113,1.58914623,157.35,157.29,6.469]
[1727678161308,23.776884,157.36,157.29,6.469]
[1727678162007,1.58914656,157.35,157.29,6.469]
[1727678163893,23.776884,157.34,157.29,6.469]
[1727678164091,23.776884,157.32,157.27,15.0389]
[1727678164286,1.5894025,157.31,157.27,15.0389]
[1727678174595,6.3549,157.36,157.28,1.27149384]
[1727678174799,23.776884,157.35,157.28,1.27149384]
[1727678175705,6.3545,157.37,157.28,1.27149384]
[1727678177016,23.776884,157.36,157.28,1.27149384]
[1727678178818,23.776884,157.36,157.28,0.12549]
[1727678181423,1.58913023,157.35,157.28,0.12549]
[1727678186420,1.58913023,157.35,157.29,4.22849532]
[1727678186618,1.58913023,157.35,157.3,4.22849532]
[1727678186926,1.58913023,157.35,157.29,4.22849532]
[1727678187132,1.58913023,157.35,157.3,4.22849532]
[1727678187308,1.58913023,157.35,157.29,4.22849532]
[1727678187505,1.58913023,157.35,157.28,0.12549]
[1727678187825,23.776884,157.34,157.27,25.17251402]
[1727678188027,1.58929879,157.33,157.27,25.17251402]
[1727678188213,23.776884,157.35,157.27,25.17251402]
[1727678189126,1.58924369,157.34,157.27,25.17251402]
[1727678189808,23.776884,157.35,157.27,25.17251402]
[1727678190321,23.776884,157.35,157.28,0.12549]
[1727678190544,23.776884,157.35,157.28,1.39678463]
[1727678192241,23.776884,157.36,157.28,1.39678463]
[1727678194627,23.776884,157.34,157.27,15.0389]
[1727678194808,1.58924957,157.33,157.27,15.0389]
[1727678195126,23.776884,157.32,157.27,15.0389]
[1727678195305,1.58947989,157.31,157.27,15.0389]
[1727678196118,7.94637989,157.31,157.27,15.0389]
[1727678196426,1.58947989,157.31,157.25,6.4609]
[1727678197327,23.776884,157.3,157.25,6.4609]
[1727678197530,1.58960898,157.29,157.25,6.4609]
[1727678198026,6.3561,157.33,157.25,6.4609]
[1727678198231,23.776884,157.33,157.26,1.27158744]
[1727678199131,23.776884,157.33,157.25,6.4609]
[1727678200020,23.776884,157.34,157.26,1.27157037]
[1727678200525,30.132484,157.34,157.26,1.27157037]
[1727678200828,23.776884,157.32,157.25,6.4609]
[1727678201029,1.58946424,157.31,157.25,6.4609]
[1727678201729,23.776884,157.3,157.25,6.4609]
[1727678202426,1.58957274,157.29,157.25,6.4609]
[1727678203020,23.776884,157.28,157.25,6.4609]
[1727678203212,23.776884,157.26,157.21,6.4588]
[1727678203418,1.59005312,157.25,157.21,6.4588]
[1727678203814,23.776884,157.28,157.21,6.4588]
[1727678203815,1.59006161,157.27,157.21,6.4588]
[1727678204014,23.776884,157.26,157.19,15.7108]
[1727678204220,1.59020942,157.25,157.19,15.7108]
[1727678204615,23.776884,157.24,157.19,15.7108]
[1727678204936,1.59018545,157.23,157.19,15.7108]
[1727678205333,23.776884,157.24,157.19,15.7108]
[1727678205522,1.59018555,157.23,157.19,15.7108]
[1727678205724,23.776884,157.24,157.19,15.7108]
[1727678208434,23.776884,157.25,157.19,15.7108]
[1727678208621,1.59018285,157.24,157.19,15.7108]
[1727678209028,1.59018285,157.24,157.17,6.0332]
[1727678209239,23.776884,157.23,157.17,6.0332]
[1727678209927,1.59041771,157.22,157.17,6.0332]
[1727678210930,23.776884,157.21,157.15,15.8272]
[1727678211140,6.3601,157.23,157.15,15.8272]
[1727678211141,23.776884,157.19,157.15,15.8272]
[1727678211442,1.59069971,157.18,157.15,15.8272]
[1727678213447,1.59069971,157.18,157.14,0.8119251]
[1727678217229,23.776884,157.17,157.14,0.8119251]
[1727678217954,1.59096171,157.16,157.14,0.8119251]
[1727678219125,23.776884,157.17,157.14,0.8119251]
[1727678220419,15.4241,157.21,157.14,0.8119251]
[1727678221945,1.5906759,157.23,157.15,10.38459402]
[1727678222241,1.59016437,157.26,157.17,10.13361402]
[1727678222447,1.59016437,157.26,157.18,0.12549]
[1727678224258,23.776884,157.25,157.18,0.12549]
[1727678224429,1.59007516,157.24,157.18,0.12549]
[1727678224742,1.59007553,157.25,157.18,0.12549]
[1727678225245,23.776884,157.24,157.17,0.12549]
[1727678225428,1.59028372,157.23,157.17,0.12549]
[1727678226840,6.3589,157.26,157.17,0.12549]
[1727678226841,23.776884,157.25,157.17,0.12549]
[1727678228153,1.59032579,157.24,157.18,10.13361402]
[1727678228327,23.776884,157.26,157.18,10.13361402]
[1727678229646,15.3407,157.27,157.2,10.13361402]
[1727678229968,16.1014,157.31,157.22,10.13361402]
[1727678230133,12.6365,157.33,157.24,10.13361402]
[1727678230333,1.58966654,157.32,157.22,15.4096]
[1727678230534,6.3568,157.31,157.23,10.13361402]
[1727678230728,6.2804,157.33,157.24,1.27181064]
[1727678230948,6.3565,157.32,157.24,1.27181064]
[1727678231834,23.776884,157.31,157.24,1.27181064]
[1727678232033,23.776884,157.31,157.23,0.12549]
[1727678232241,23.776884,157.29,157.23,10.25910402]
[1727678232547,1.5897259,157.28,157.23,10.25910402]
[1727678233131,23.776884,157.29,157.24,1.27177576]
[1727678234246,23.902374,157.27,157.15,21.9427]
[1727678234553,6.3589,157.26,157.17,10.13361402]
[1727678234752,23.776884,157.25,157.17,10.13361402]
[1727678235229,16.6277,157.28,157.17,10.13361402]
[1727678235429,1.58995366,157.27,157.21,10.13361402]
[1727678235844,1.58995366,157.27,157.14,0.8119251]
[1727678235845,16.6277,157.32,157.23,10.13361402]
[1727678236052,16.6277,157.32,157.23,11.40540622]
[1727678237257,22.9842,157.32,157.23,10.13361402]
[1727678237468,7.94667927,157.31,157.22,21.9427]
[1727678237761,23.902374,157.3,157.22,21.9427]
[1727678238451,23.776884,157.3,157.23,1.27192319]
[1727678238757,6.3562,157.33,157.25,10.13361402]
[1727678238950,6.3562,157.33,157.25,11.40528075]
[1727678239634,1.58958614,157.32,157.25,10.13361402]
[1727678239840,7.94598614,157.32,157.25,10.13361402]
[1727678240434,6.3564,157.32,157.25,10.13361402]
[1727678241255,23.776884,157.31,157.25,10.13361402]
[1727678241434,1.58964052,157.3,157.25,10.13361402]
[1727678241757,23.776884,157.31,157.25,10.13361402]
[1727678242052,23.776884,157.31,157.26,1.27171254]
[1727678243130,1.58957144,157.3,157.23,10.13361402]
[1727678243449,23.776884,157.29,157.22,32.07631402]
[1727678243642,1.58985103,157.28,157.22,32.07631402]
[1727678244248,23.776884,157.27,157.22,32.07631402]
[1727678244650,1.58990049,157.26,157.22,32.07631402]
[1727678244834,1.58990049,157.26,157.22,21.9427]
[1727678250560,20.0,157.3,157.23,0.12549]
[1727678250856,1.58970628,157.29,157.23,0.12549]
[1727678251160,1.58966396,157.34,157.27,0.12549]
[1727678251647,7.94536396,157.34,157.27,0.12549]
[1727678252054,7.94536396,157.34,157.26,10.13361402]
[1727678253061,23.776884,157.33,157.26,10.13361402]
[1727678255043,1.58938229,157.32,157.26,10.13361402]
[1727678258745,23.776884,157.31,157.25,10.13361402]
[1727678258945,1.58955941,157.3,157.25,10.13361402]
[1727678259951,23.776884,157.31,157.25,10.13361402]
[1727678260981,6.3557,157.34,157.27,10.13361402]
[1727678261158,23.776884,157.33,157.27,10.13361402]
[1727678261771,23.776884,157.34,157.28,1.27148885]
[1727678263172,23.776884,157.34,157.27,10.13361402]
[1727678263472,30.132484,157.34,157.27,10.13361402]
[1727678264355,30.132484,157.34,157.27,16.73451402]
[1727678265269,6.3564,157.33,157.27,6.6009]
[1727678265451,23.776884,157.31,157.27,6.6009]
[1727678265651,1.58950898,157.3,157.27,6.6009]
[1727678268542,6.3561,157.33,157.27,6.6009]
[1727678268859,25.36639474,157.32,157.27,6.6009]
[1727678270458,23.776884,157.29,157.23,6.4903]
[1727678270652,25.36660055,157.29,157.23,6.4903]
[1727678271047,23.776884,157.29,157.23,6.4903]
[1727678272658,23.776884,157.29,157.23,7.7621045]
[1727678273652,23.776884,157.29,157.23,6.4903]
[1727678273871,1.58975595,157.28,157.23,6.4903]
[1727678274168,23.776884,157.29,157.23,6.4903]
[1727678274682,1.58975628,157.28,157.23,6.4903]
[1727678276264,23.776884,157.27,157.23,6.4903]
[1727678277171,1.58988836,157.26,157.23,6.4903]
[1727678277359,23.776884,157.27,157.23,6.4903]
[1727678277671,25.36679309,157.27,157.23,6.4903]
[1727678277974,23.776884,157.27,157.23,6.4903]
[1727678278163,1.58990929,157.26,157.23,6.4903]
[1727678278366,23.776884,157.27,157.23,6.4903]
[1727678280576,23.776884,157.28,157.23,6.4903]
[1727678280952,6.3571,157.31,157.24,0.12549]
[1727678281154,1.58956902,157.3,157.24,0.12549]
[1727678282475,7.94616661,157.32,157.24,0.12549]
[1727678282663,23.776884,157.31,157.24,0.12549]
[1727678282978,1.58956786,157.3,157.24,0.12549]
[1727678283363,1.58956786,157.3,157.23,6.4903]
[1727678283677,23.776884,157.29,157.23,6.4903]
[1727678283880,1.58968251,157.28,157.23,6.4903]
[1727678284556,23.776884,157.3,157.24,1.27174619]
[1727678284755,23.776884,157.3,157.23,6.4903]
[1727678285158,23.776884,157.31,157.24,10.25910402]
[1727678285879,1.58956982,157.3,157.24,10.25910402]
[1727678288072,23.776884,157.31,157.24,10.25910402]
[1727678289179,1.58956965,157.3,157.24,10.25910402]
[1727678289385,23.776884,157.29,157.23,6.4903]
[1727678289685,25.36660274,157.29,157.23,6.4903]
[1727678290063,1.58968833,157.28,157.23,6.4903]
[1727678290262,30.134584,157.29,157.23,6.4903]
[1727678291284,23.776884,157.27,157.23,6.4903]
[1727678292161,25.36678975,157.27,157.23,6.4903]
[1727678292363,23.776884,157.27,157.23,6.4903]
[1727678292677,23.776884,157.28,157.23,6.4903]
[1727678292869,1.5898363,157.27,157.23,6.4903]
[1727678295487,23.776884,157.28,157.23,6.4903]
[1727678295664,6.3574,157.3,157.23,7.76217729]
[1727678295870,1.58966897,157.29,157.23,6.4903]
[1727678296080,20.0,157.33,157.24,0.12549]
[1727678296280,20.0,157.35,157.24,0.12549]
[1727678296483,6.3569,157.31,157.24,0.12549]
[1727678296691,1.58957028,157.3,157.24,0.12549]
[1727678296896,6.3573,157.3,157.23,16.62391402]
[1727678298274,23.776884,157.29,157.23,16.62391402]
[1727678299103,23.776884,157.31,157.24,1.39716372]
[1727678300976,23.776884,157.31,157.24,0.12549]
[1727678302001,30.133684,157.31,157.24,0.12549]
[1727678302777,1.5895744,157.3,157.24,0.12549]
[1727678304197,30.133684,157.31,157.24,0.12549]
[1727678308196,1.58957696,157.3,157.24,0.12549]
[1727678308371,23.776884,157.29,157.23,6.4903]
[1727678308696,1.58978124,157.28,157.23,6.4903]
[1727678309406,6.3585,157.27,157.23,6.4903]
[1727678309584,1.58987386,157.26,157.23,6.4903]
[1727678310395,23.776884,157.29,157.23,6.4903]
[1727678310598,23.776884,157.27,157.23,6.4903]
[1727678310788,1.58990264,157.26,157.23,6.4903]
[1727678310987,0.12549,157.34,157.24,1.27192228]
[1727678311394,6.3573,157.3,157.23,6.4903]
[1727678312182,25.36657692,157.29,157.23,6.4903]
[1727678313794,25.36657692,157.29,157.24,4.24027651]
[1727678313994,25.36657692,157.29,157.23,6.4903]
[1727678315403,6.3581,157.28,157.23,6.4903]
[1727678315612,7.94792233,157.28,157.23,6.4903]
[1727678316100,1.58982233,157.28,157.23,6.4903]
[1727678316687,30.134584,157.29,157.23,6.4903]
[1727678317101,1.58976366,157.28,157.23,6.4903]
[1727678318095,1.58981598,157.32,157.24,0.12549]
[1727678318307,6.3573,157.3,157.24,0.12549]
[1727678319010,6.3568,157.31,157.24,0.12549]
[1727678319307,6.3568,157.32,157.24,1.39713918]
[1727678319606,31.72344281,157.31,157.24,0.12549]
[1727678319807,1.58956324,157.3,157.24,0.12549]
[1727678320206,6.3576,157.3,157.24,0.12549]
[1727678321205,1.589658,157.29,157.24,0.12549]
[1727678322827,1.589658,157.29,157.23,6.4903]
[1727678323808,23.776884,157.29,157.23,6.4903]
[1727678324015,23.776884,157.29,157.23,7.76208802]
[1727678325292,31.72431951,157.29,157.23,6.4903]
[1727678325805,23.776884,157.29,157.23,7.76210927]
[1727678325997,1.58976159,157.28,157.23,6.4903]
[1727678326319,23.776884,157.27,157.23,6.4903]
[1727678326499,6.3577,157.29,157.23,7.7622249]
[1727678326699,23.776884,157.28,157.23,7.7622249]
[1727678327295,23.776884,157.28,157.23,6.4903]
[1727678327610,1.58981169,157.27,157.23,6.4903]
[1727678327911,23.776884,157.28,157.23,6.4903]
[1727678328593,30.134984,157.28,157.23,6.4903]
[1727678329891,1.58985727,157.27,157.22,15.567]
[1727678330095,6.3594,157.25,157.19,6.3594]
[1727678330292,1.59017508,157.24,157.19,6.3594]
[1727678330510,6.3587,157.27,157.2,1.27213977]
[1727678330813,23.776884,157.29,157.21,11.40558184]
[1727678330989,23.776884,157.29,157.21,1.27196782]
[1727678331195,23.776884,157.29,157.23,10.13361402]
[1727678331407,23.776884,157.29,157.2,0.25098]
[1727678331616,25.36661677,157.29,157.22,10.13361402]
[1727678331938,25.36661677,157.29,157.23,0.12549]
[1727678332689,25.36661677,157.29,157.23,15.92029]
[1727678333097,25.36661677,157.29,157.23,15.7948]
[1727678333300,6.3581,157.28,157.23,15.7948]
[1727678334287,1.58987871,157.27,157.23,15.7948]
[1727678334489,6.3589,157.26,157.19,31.51881402]
[1727678334712,6.3585,157.27,157.2,1.27208145]
[1727678334917,23.776884,157.27,157.19,21.3852]
[1727678335121,23.776884,157.27,157.2,10.13361402]
[1727678335122,1.58994987,157.26,157.2,10.13361402]
[1727678335494,30.135384,157.27,157.2,10.13361402]
[1727678338726,30.135384,157.27,157.2,11.40566379]
[1727678339329,30.135384,157.27,157.2,1.27204977]
[1727678339622,30.135384,157.27,157.2,11.40566379]
[1727678340126,30.135384,157.27,157.2,10.13361402]
[1727678342721,1.59006313,157.26,157.2,10.13361402]
[1727678343098,7.94896313,157.26,157.2,10.13361402]
[1727678343416,6.3589,157.26,157.2,10.13361402]
[1727678343819,6.3589,157.26,157.21,1.27205328]
[1727678344417,30.135384,157.27,157.2,10.13361402]
[1727678345015,23.776884,157.27,157.21,0.12549]
[1727678345213,23.776884,157.28,157.22,10.13361402]
[1727678346314,23.776884,157.28,157.23,1.2719217]
[1727678346716,23.776884,157.28,157.21,0.12549]
[1727678346929,23.776884,157.28,157.22,1.2718949]
[1727678349913,6.358,157.29,157.23,0.12549]
[1727678350729,1.58976504,157.28,157.23,0.12549]
[1727678350908,6.358,157.29,157.23,0.12549]
[1727678352514,1.58976614,157.28,157.23,0.12549]
[1727678354512,6.358,157.29,157.23,0.12549]
[1727678355128,6.3573,157.3,157.24,6.0759]
[1727678355322,6.3573,157.3,157.24,21.6553]
[1727678356043,1.58968396,157.29,157.2,6.0418]
[1727678356231,30.134984,157.28,157.21,0.12549]
[1727678357736,7.94836997,157.27,157.21,0.12549]
[1727678357936,1.58986997,157.27,157.21,0.12549]
[1727678358124,30.134984,157.28,157.21,0.12549]
[1727678358524,30.134984,157.28,157.21,1.39741761]
[1727678358718,30.134984,157.28,157.21,0.12549]
[1727678359313,23.776884,157.28,157.21,0.12549]
[1727678359516,6.3573,157.3,157.22,10.13361402]
[1727678359711,23.776884,157.29,157.23,1.27180871]
[1727678360023,1.58979678,157.3,157.24,0.12549]
[1727678360355,6.3573,157.3,157.24,0.12549]
[1727678360647,1.58967037,157.29,157.24,0.12549]
[1727678360821,1.58967037,157.29,157.22,10.13361402]
[1727678362037,7.94737037,157.29,157.22,10.13361402]
[1727678362243,1.58980333,157.28,157.22,10.13361402]
[1727678365323,1.58980333,157.28,157.21,0.12549]
[1727678365529,7.94800333,157.28,157.21,0.12549]
[1727678365847,1.5899351,157.27,157.21,0.12549]
[1727678370728,23.776884,157.27,157.21,0.12549]
[1727678372946,1.58991502,157.26,157.21,0.12549]
[1727678373566,1.58991502,157.26,157.2,16.17541402]
[1727678373855,1.58991502,157.26,157.2,6.0418]
[1727678374249,30.135384,157.27,157.2,6.0418]
[1727678374429,30.135384,157.27,157.21,4.24386961]
[1727678374628,1.59008242,157.26,157.2,6.0418]
[1727678375649,7.94898242,157.26,157.2,6.0418]
[1727678376031,23.776884,157.25,157.2,6.0418]
[1727678376238,6.3601,157.23,157.2,6.0418]
[1727678376441,6.3609,157.21,157.19,15.2696]
[1727678376649,1.59037385,157.22,157.16,6.3584]
[1727678377447,1.59039682,157.23,157.16,6.3584]
[1727678378736,23.776884,157.23,157.17,1.27231703]
[1727678380243,23.776884,157.23,157.16,6.3584]
[1727678380633,23.776884,157.23,157.17,1.27231467]
[1727678380840,23.776884,157.23,157.16,6.3584]
[1727678381349,6.3605,157.22,157.16,6.3584]
[1727678381552,23.776884,157.21,157.16,6.3584]
[1727678382234,1.59063133,157.2,157.16,6.3584]
[1727678382542,1.59068709,157.19,157.16,6.3584]